bitfinex/quotes_SOLUSD_20250518
["timestamp","ask_amount","ask_price","bid_price","bid_amount"]
[1747553847470,32.23606928,169.69,169.61,7.44985701]
[1747553849099,10.00461357,169.68,169.61,7.44985701]
[1747553850394,5.89379383,169.67,169.6,31.8961465]
[1747553853002,15.89817681,169.68,169.6,31.8961465]
[1747553855084,15.89817681,169.68,169.59,5.89657409]
[1747553855502,15.89817681,169.68,169.59,31.89657409]
[1747553855797,10.00461357,169.67,169.59,5.89657409]
[1747553856309,15.89849262,169.67,169.61,9.26948917]
[1747553857301,15.89849262,169.67,169.6,5.89622641]
[1747553857804,15.89816213,169.68,169.6,5.89622641]
[1747553858110,26.34290364,169.69,169.6,20.63679244]
[1747553858580,16.33829007,169.69,169.6,20.63679244]
[1747553864311,16.33829007,169.69,169.64,26.0]
[1747553866307,16.33829007,169.69,169.65,5.89448865]
[1747553871719,16.33829007,169.69,169.65,26.0]
[1747553873027,22.23145935,169.69,169.65,26.0]
[1747553874431,16.33829007,169.69,169.65,26.0]
[1747553876922,16.33829007,169.69,169.65,31.89444012]
[1747553879430,5.89227896,169.72,169.65,31.89444012]
[1747553881837,44.3901,169.74,169.65,31.89444012]
[1747553881838,41.96098899,169.74,169.65,31.89444012]
[1747553884640,5.8920575,169.72,169.65,31.89444012]
[1747553885537,15.89112982,169.73,169.65,31.89444012]
[1747553888649,9.99929405,169.71,169.65,31.89444012]
[1747553888941,9.99929405,169.7,169.65,26.0]
[1747553890140,15.89228895,169.7,169.65,26.0]
[1747553890338,5.8929949,169.7,169.65,26.0]
[1747553890542,15.89228895,169.7,169.65,26.0]
[1747553891938,5.8929949,169.7,169.65,26.0]
[1747553892840,15.891806,169.71,169.65,5.89446484]
[1747553893015,5.89251195,169.71,169.65,5.89446484]
[1747553895851,15.891806,169.71,169.65,5.89446484]
[1747553897754,5.89213016,169.72,169.65,5.89446484]
[1747553898252,15.89112827,169.73,169.65,5.89446484]
[1747553901232,12.29161548,169.73,169.65,5.89446484]
[1747553902561,6.39978126,169.72,169.65,5.89446484]
[1747553903462,12.29161548,169.73,169.65,5.89446484]
[1747553907172,12.29188095,169.72,169.65,5.89446484]
[1747553925792,5.89171036,169.73,169.65,5.89446484]
[1747553925977,6.39978126,169.72,169.65,5.89446484]
[1747553926993,12.29198542,169.72,169.65,5.89446484]
[1747553932401,5.89171036,169.73,169.65,5.89446484]
[1747553932599,6.39978126,169.72,169.65,5.89446484]
[1747553934305,12.29202093,169.72,169.65,5.89446484]
[1747553935714,6.39978126,169.7,169.66,26.0]
[1747553936680,12.29279217,169.7,169.66,26.0]
[1747553939991,6.39978126,169.7,169.66,26.0]
[1747553940190,12.29229644,169.71,169.66,26.0]
[1747553942697,6.39978126,169.7,169.66,26.0]
[1747553944220,12.29229644,169.71,169.66,26.0]
[1747553946641,12.29229644,169.71,169.66,31.89413291]
[1747553946928,24.71978126,169.73,169.66,31.89413291]
[1747553947310,30.61149587,169.73,169.66,31.89413291]
[1747553948823,30.61149587,169.73,169.68,5.89344648]
[1747553949810,30.61149587,169.73,169.67,5.89379383]
[1747553951223,6.39978126,169.72,169.67,5.89379383]
[1747553955127,12.29185596,169.72,169.67,5.89379383]
[1747553956505,6.39978126,169.72,169.67,5.89379383]
[1747553958930,12.29190117,169.72,169.67,5.89379383]
[1747553959428,12.29190117,169.72,169.66,31.8940829]
[1747553959429,6.39978126,169.71,169.66,31.8940829]
[1747553959630,6.39978126,169.7,169.64,5.89483612]
[1747553959806,5.89211991,169.72,169.63,19.9361]
[1747553959807,6.39978126,169.69,169.63,25.83116746]
[1747553960007,6.39978126,169.68,169.63,25.83116746]
[1747553960306,6.39978126,169.68,169.63,24.19506746]
[1747553960505,6.39978126,169.68,169.63,18.3]
[1747553961546,6.39978126,169.68,169.61,31.89580749]
[1747553961915,12.29387588,169.67,169.61,26.0]
[1747553963139,12.29387588,169.67,169.61,31.89576346]
[1747553963440,5.89409462,169.67,169.61,31.89576346]
[1747553965140,5.89409462,169.67,169.6,5.89611561]
[1747553965340,6.39978126,169.65,169.59,33.50586999]
[1747553965516,6.39978126,169.65,169.59,31.89646999]
[1747553965717,6.39978126,169.65,169.59,26.0]
[1747553966936,5.89483612,169.64,169.59,26.0]
[1747553967835,5.89483612,169.64,169.58,18.3]
[1747553967836,12.29461738,169.64,169.58,18.3]
[1747553968235,12.29461738,169.64,169.57,5.89716506]
[1747553969831,6.39978126,169.65,169.57,5.89716506]
[1747553970023,6.39978126,169.66,169.57,5.89716506]
[1747553970544,12.29402979,169.66,169.57,5.89716506]
[1747553970841,5.89424853,169.66,169.57,24.21716506]
[1747553971045,12.29402979,169.66,169.57,24.21716506]
[1747553971724,12.29365915,169.67,169.57,38.96033897]
[1747553972936,12.29333468,169.68,169.59,26.0]
[1747553974369,12.29333468,169.68,169.6,5.89622641]
[1747553974558,12.29298302,169.69,169.6,5.89622641]
[1747553977761,5.89320176,169.69,169.63,5.89498246]
[1747553978045,168.79262902,169.7,169.63,5.89498246]
[1747553979749,168.79262902,169.7,169.62,5.89553118]
[1747553981362,30.59262902,169.7,169.62,5.89553118]
[1747553982351,6.39978126,169.69,169.62,5.89553118]
[1747553988762,12.292948,169.69,169.62,5.89553118]
[1747553988964,6.39978126,169.68,169.62,5.89553118]
[1747553992360,12.292948,169.69,169.62,5.89553118]
[1747553994065,6.39978126,169.68,169.62,5.89553118]
[1747553994959,5.89379383,169.67,169.62,5.89553118]
[1747554000268,12.29333706,169.68,169.62,5.89553118]
[1747554003962,18.3,169.7,169.62,5.89553118]
[1747554004175,6.39978126,169.68,169.62,5.89553118]
[1747554007069,12.29332036,169.68,169.62,5.89553118]
[1747554008273,12.29294753,169.69,169.62,5.89553118]
[1747554020273,6.39978126,169.69,169.62,5.89553118]
[1747554021075,6.39978126,169.68,169.61,26.0]
[1747554021280,6.39978126,169.67,169.61,31.89582557]
[1747554021779,6.39978126,169.67,169.61,5.89582557]
[1747554021964,5.89414122,169.66,169.61,5.89582557]
[1747554024381,5.89390708,169.67,169.61,5.89582557]
[1747554032485,12.29288044,169.69,169.61,5.89582557]
[1747554033077,6.39978126,169.68,169.61,5.89582557]
[1747554033276,6.39978126,169.68,169.61,26.0]
[1747554033479,6.39978126,169.67,169.6,7.47570562]
[1747554033660,6.39978126,169.66,169.59,31.89629275]
[1747554033869,6.39978126,169.63,169.56,19.9346]
[1747554034077,5.89553118,169.62,169.56,7.51210346]
[1747554035283,6.39978126,169.62,169.56,7.51210346]
[1747554035472,6.39978126,169.62,169.56,1.6146]
[1747554035673,6.39978126,169.62,169.55,31.89787843]
[1747554036394,6.39978126,169.63,169.55,31.89787843]
[1747554036578,12.29515972,169.63,169.55,31.89787843]
[1747554037183,5.89537846,169.63,169.55,31.89787843]
[1747554037496,30.59455017,169.65,169.55,31.89787843]
[1747554037691,18.3,169.65,169.55,46.64279143]
[1747554037897,150.4936944,169.67,169.58,26.0]
[1747554038092,5.89391314,169.67,169.58,26.0]
[1747554038691,6.39978126,169.66,169.59,5.89657409]
[1747554038873,6.39978126,169.65,169.59,5.89657409]
[1747554039997,12.29425964,169.66,169.59,5.89657409]
[1747554040797,12.29425964,169.66,169.59,31.89657409]
[1747554042999,5.89447838,169.66,169.59,31.89657409]
[1747554043471,12.29425964,169.66,169.59,31.89657409]
[1747554044683,6.39978126,169.65,169.59,26.0]
[1747554045400,6.39978126,169.64,169.59,26.0]
[1747554045976,5.89518363,169.63,169.59,26.0]
[1747554046794,5.89493034,169.64,169.59,26.0]
[1747554047497,5.89459936,169.65,169.59,31.89653339]
[1747554054809,12.29438062,169.65,169.59,26.0]
[1747554054981,12.29438062,169.65,169.59,31.89652874]
[1747554058512,6.39978126,169.66,169.59,31.89652874]
[1747554060283,5.89448865,169.65,169.59,26.0]
[1747554061013,12.29426991,169.65,169.59,26.0]
[1747554063517,6.39978126,169.64,169.57,26.0]
[1747554064515,5.89518363,169.63,169.57,26.0]
[1747554064913,5.89518363,169.63,169.57,31.89726895]
[1747554066892,5.89492027,169.64,169.57,31.89726895]
[1747554067097,5.89453211,169.65,169.57,31.89726895]
[1747554075639,5.89379383,169.67,169.57,31.89726895]
[1747554075841,5.89352162,169.68,169.58,6.4817]
[1747554076024,24.19313322,169.69,169.59,1.6216]
[1747554076528,18.3,169.69,169.61,26.0]
[1747554076728,18.3,169.69,169.63,26.0]
[1747554077054,34.40540018,169.74,169.64,8.1033]
[1747554077055,26.41435614,169.74,169.64,8.1033]
[1747554077215,24.19143347,169.74,169.64,8.1033]
[1747554077632,24.19143347,169.74,169.65,5.89448865]
[1747554077840,30.59121473,169.74,169.65,5.89448865]
[1747554078234,6.39978126,169.72,169.64,13.99806236]
[1747554078437,6.39978126,169.7,169.64,1.6216]
[1747554079459,6.39978126,169.69,169.62,5.89544686]
[1747554079943,5.89344648,169.68,169.62,5.89544686]
[1747554080747,6.39978126,169.72,169.62,5.89544686]
[1747554081054,6.39978126,169.71,169.62,5.89544686]
[1747554081232,10.00111144,169.71,169.62,5.89544686]
[1747554082144,5.89251363,169.71,169.62,5.89544686]
[1747554082447,15.89323865,169.72,169.65,26.0]
[1747554082747,15.89292373,169.73,169.65,26.0]
[1747554083744,34.19258624,169.74,169.66,1.5667]
[1747554083950,34.19258624,169.74,169.67,5.89379383]
[1747554085033,10.00111144,169.73,169.67,5.89379383]
[1747554085232,15.89292368,169.73,169.67,5.89379383]
[1747554085648,5.89181224,169.73,169.67,5.89379383]
[1747554085850,15.89292368,169.73,169.67,5.89379383]
[1747554086546,15.89292368,169.73,169.66,7.46074481]
[1747554089855,15.8932282,169.72,169.66,7.46074481]
[1747554090849,10.00111144,169.7,169.64,26.0]
[1747554091021,10.00111144,169.7,169.65,3.37844234]
[1747554092048,5.89309918,169.69,169.65,3.37844234]
[1747554093759,15.89421062,169.69,169.65,3.37844234]
[1747554093960,15.89421062,169.69,169.66,3.37844234]
[1747554095261,10.00111144,169.68,169.64,30.22146908]
[1747554095752,5.89309918,169.69,169.64,30.22146908]
[1747554096057,15.89421062,169.69,169.64,30.22146908]
[1747554096749,15.89421062,169.69,169.65,3.37687003]
[1747554097760,15.89421062,169.69,169.64,26.0]
[1747554099870,10.00111144,169.7,169.64,26.0]
[1747554100567,10.00111144,169.69,169.64,26.0]
[1747554100763,10.00111144,169.69,169.64,31.8944989]
[1747554100973,10.00111144,169.69,169.65,3.37589062]
[1747554101156,15.89443236,169.69,169.65,3.37589062]
[1747554102273,15.89443236,169.69,169.64,26.0]
[1747554102868,10.00111144,169.69,169.64,31.89471995]
[1747554104070,5.89300364,169.7,169.64,31.89471995]
[1747554104272,10.00111144,169.69,169.64,31.89471995]
[1747554104954,15.89411508,169.7,169.64,31.89471995]
[1747554105137,15.89411508,169.7,169.65,3.37438066]
[1747554105758,10.00111144,169.71,169.65,9.26872481]
[1747554106361,10.00111144,169.71,169.66,3.37438066]
[1747554106869,15.89363426,169.71,169.66,3.37438066]
[1747554107559,10.00111144,169.7,169.64,31.89472898]
[1747554108459,15.89398466,169.7,169.64,31.89472898]
[1747554108973,15.89398466,169.7,169.65,3.37298343]
[1747554109981,15.89398466,169.7,169.65,9.26745125]
[1747554110478,15.89398466,169.7,169.65,3.37298343]
[1747554110780,15.89398466,169.7,169.66,3.37298343]
[1747554111079,10.00111144,169.7,169.66,3.37298343]
[1747554111652,10.00111144,169.7,169.65,5.89445671]
[1747554111854,10.00111144,169.71,169.65,5.89445671]
[1747554113380,15.8936394,169.71,169.65,5.89445671]
[1747554114679,15.8936394,169.71,169.66,3.37199829]
[1747554115085,15.8936394,169.71,169.66,9.26609176]
[1747554115682,5.89252796,169.71,169.66,9.26609176]
[1747554115875,10.00111144,169.71,169.66,5.89409347]
[1747554116689,10.00111144,169.72,169.65,5.89448865]
[1747554116881,15.89284743,169.73,169.65,5.89448865]
[1747554117064,15.89284743,169.73,169.67,3.3716727]
[1747554118186,15.89284743,169.73,169.65,5.89448865]
[1747554119185,5.89173599,169.73,169.66,9.26440909]
[1747554119361,10.00111144,169.72,169.66,9.26440909]
[1747554121157,10.00111144,169.72,169.67,3.37056409]
[1747554122399,10.00111144,169.72,169.66,5.893845]
[1747554122689,15.89284743,169.73,169.65,5.89448865]
[1747554122984,10.00111144,169.73,169.65,5.89448865]
[1747554123188,34.19259312,169.74,169.65,12.49668865]
[1747554124175,34.19259312,169.74,169.67,5.89379383]
[1747554126086,34.19259312,169.74,169.66,5.89414122]
[1747554126260,24.19148168,169.74,169.66,5.89414122]
[1747554126460,34.19259312,169.74,169.66,5.89414122]
[1747554127298,6.39918477,169.73,169.68,5.89344648]
[1747554128398,6.39918477,169.73,169.66,5.89414122]
[1747554130192,12.29095853,169.73,169.66,5.89414122]
[1747554130378,6.39918477,169.72,169.66,5.89414122]
[1747554130694,6.39918477,169.72,169.67,9.26571792]
[1747554132779,6.39918477,169.72,169.67,5.89357745]
[1747554133695,12.29128639,169.72,169.67,5.89357745]
[1747554133896,6.39918477,169.71,169.66,5.89411964]
[1747554134380,6.39918477,169.7,169.65,5.89444662]
[1747554135168,6.39918477,169.7,169.66,3.37258222]
[1747554135794,12.29199168,169.7,169.66,3.37258222]
[1747554136202,6.39918477,169.69,169.66,3.37258222]
[1747554136407,6.39918477,169.67,169.66,3.37258222]
[1747554136569,6.39918477,169.67,169.64,18.28]
[1747554137300,5.89280691,169.7,169.64,18.28]
[1747554137597,10.00551011,169.68,169.64,18.28]
[1747554137768,15.89922124,169.68,169.64,18.28]
[1747554138274,10.00551011,169.68,169.64,18.28]
[1747554139997,15.8989874,169.68,169.64,18.28]
[1747554140570,5.89347729,169.68,169.64,18.28]
[1747554140771,15.8989874,169.68,169.63,26.0]
[1747554141499,15.8989874,169.68,169.64,3.37167177]
[1747554142897,15.8989874,169.68,169.63,31.89513227]
[1747554143501,14.72969098,169.73,169.63,31.89497128]
[1747554143710,10.00551011,169.7,169.63,31.89497128]
[1747554145105,15.89827385,169.7,169.63,31.89497128]
[1747554145401,15.89827385,169.7,169.64,3.37224292]
[1747554145794,10.00551011,169.7,169.64,3.37224292]
[1747554146508,10.00551011,169.7,169.65,5.89448865]
[1747554148613,10.00551011,169.7,169.64,5.89483612]
[1747554148985,10.00551011,169.7,169.65,3.37229137]
[1747554150509,15.89827034,169.7,169.65,3.37229137]
[1747554151404,15.89827034,169.7,169.64,5.89483612]
[1747554153184,10.00551011,169.69,169.63,26.0]
[1747554153684,10.00551011,169.69,169.62,24.06816908]
[1747554153685,10.00551011,169.69,169.62,50.06816908]
[1747554154607,15.89889929,169.69,169.63,3.37173869]
[1747554155900,15.89889929,169.69,169.63,9.26667538]
[1747554156106,10.00551011,169.69,169.64,3.37173869]
[1747554156301,15.89838113,169.7,169.64,3.37173869]
[1747554157212,15.89838113,169.7,169.65,3.37173869]
[1747554158220,15.89838113,169.7,169.65,9.26622307]
[1747554159114,15.89838113,169.7,169.65,5.89448438]
[1747554159305,6.40201316,169.7,169.63,5.89518363]
[1747554160416,12.29495073,169.7,169.63,5.89518363]
[1747554160602,12.29495073,169.7,169.64,3.37037714]
[1747554161502,12.29495073,169.7,169.64,5.89465485]
[1747554162104,138.2,169.74,169.64,20.63174515]
[1747554162417,6.40201316,169.74,169.64,20.63174515]
[1747554162619,12.29346286,169.74,169.64,20.63174515]
[1747554162817,6.40201316,169.74,169.65,3.36996678]
[1747554162994,6.40201316,169.74,169.65,29.36996678]
[1747554163196,12.2931084,169.75,169.65,29.36996678]
[1747554163405,6.40201316,169.74,169.66,5.89414122]
[1747554163827,12.29346073,169.74,169.67,3.36996678]
[1747554165627,6.40201316,169.72,169.67,3.36996678]
[1747554165925,6.40201316,169.72,169.66,5.89414122]
[1747554168722,6.40201316,169.72,169.67,3.36736817]
[1747554168922,6.40201316,169.72,169.67,9.2611387]
[1747554169826,12.29412258,169.72,169.67,9.2611387]
[1747554170126,12.29412258,169.72,169.67,5.89377053]
[1747554170826,12.29412258,169.72,169.66,5.89414122]
[1747554172034,6.40201316,169.71,169.66,5.89414122]
[1747554172503,12.29412258,169.72,169.66,5.89414122]
[1747554173835,5.8910162,169.75,169.66,5.89414122]
[1747554174141,6.40201316,169.72,169.66,5.89414122]
[1747554177714,6.40201316,169.71,169.65,31.89444437]
[1747554178433,6.40201316,169.71,169.66,3.36562272]
[1747554178810,12.29442105,169.71,169.66,3.36562272]
[1747554179542,12.29442105,169.71,169.66,9.25970692]
[1747554180042,5.89240789,169.71,169.67,3.36562272]
[1747554181957,5.89240789,169.71,169.66,5.8940842]
[1747554184473,5.89214069,169.72,169.66,5.8940842]
[1747554184628,12.29415385,169.72,169.66,5.8940842]
[1747554185141,12.29415385,169.72,169.67,3.365212]
[1747554186126,12.29415385,169.72,169.66,5.8940842]
[1747554191863,6.40201316,169.71,169.65,31.89437319]
[1747554193159,12.29457609,169.71,169.65,31.89437319]
[1747554193864,12.29457609,169.71,169.66,3.36528829]
[1747554194568,12.29457609,169.71,169.66,9.25933783]
[1747554195048,5.89256293,169.71,169.66,9.25933783]
[1747554195349,5.89256293,169.71,169.66,5.89404954]
[1747554195858,5.89256293,169.71,169.67,3.36488488]
[1747554197267,12.29418741,169.72,169.67,3.36488488]
[1747554197476,12.29418741,169.72,169.66,5.89404954]
[1747554198163,6.40201316,169.73,169.66,5.89404954]
[1747554198363,12.29337642,169.74,169.66,5.89404954]
[1747554199599,5.89136326,169.74,169.66,5.89404954]
[1747554199769,12.29337642,169.74,169.66,5.89404954]
[1747554199941,12.29337642,169.74,169.67,3.36439998]
[1747554200967,12.29337642,169.74,169.67,9.25801939]
[1747554201569,12.29337642,169.74,169.67,5.89361941]
[1747554201948,12.29337642,169.74,169.66,5.89414122]
[1747554204071,12.29337642,169.74,169.67,1.5384]
[1747554205371,6.40201316,169.73,169.67,7.43215259]
[1747554206447,12.293832,169.73,169.67,7.43215259]
[1747554206668,12.293832,169.73,169.68,3.36600184]
[1747554208247,12.29347388,169.74,169.68,9.25935887]
[1747554208447,12.29347388,169.74,169.68,5.89335703]
[1747554213384,6.40201316,169.73,169.68,5.89335703]
[1747554215261,12.29378628,169.73,169.68,5.89335703]
[1747554217481,6.40201316,169.73,169.68,5.89335703]
[1747554217664,8.11435614,169.77,169.68,50.17335703]
[1747554217864,12.29198842,169.78,169.68,50.17335703]
[1747554218866,12.29198842,169.78,169.7,5.89275191]
[1747554219977,12.29198842,169.78,169.71,9.2594824]
[1747554220889,5.88997526,169.78,169.71,9.2594824]
[1747554221086,12.29164152,169.79,169.72,26.0]
[1747554221509,5.88962836,169.79,169.72,26.0]
[1747554221799,5.88962836,169.79,169.73,1.5248]
[1747554222897,5.88962836,169.79,169.73,7.41624459]
[1747554225092,6.40201316,169.8,169.73,7.41624459]
[1747554225271,5.88893469,169.81,169.73,7.41624459]
[1747554225471,12.29094785,169.81,169.73,7.41624459]
[1747554226205,5.88893469,169.81,169.73,7.41624459]
[1747554226570,12.29094785,169.81,169.73,7.41624459]
[1747554232205,12.29133838,169.8,169.73,7.41624459]
[1747554234001,6.40201316,169.8,169.73,7.41624459]
[1747554234484,12.29095913,169.81,169.73,7.41624459]
[1747554236408,12.29129578,169.8,169.73,7.41624459]
[1747554244220,10.81509845,169.8,169.73,7.41624459]
[1747554244724,1.5693,169.79,169.68,42.35516908]
[1747554244902,6.40201316,169.75,169.69,5.89309918]
[1747554245088,6.40201316,169.74,169.72,26.0]
[1747554247318,6.40201316,169.75,169.72,26.0]
[1747554247823,6.40201316,169.75,169.69,5.89309918]
[1747554248719,12.29317614,169.75,169.72,26.0]
[1747554249099,6.40201316,169.76,169.72,26.0]
[1747554249308,12.29243124,169.77,169.72,26.0]
[1747554250002,6.40201316,169.76,169.72,26.0]
[1747554254821,5.88997526,169.78,169.72,26.0]
[1747554255029,6.40201316,169.76,169.72,26.0]
[1747554255399,6.40201316,169.77,169.72,31.8919614]
[1747554256309,12.2923733,169.77,169.72,31.8919614]
[1747554256815,5.89004703,169.78,169.72,31.8919614]
[1747554257035,12.29206019,169.78,169.72,31.8919614]
[1747554258247,6.40201316,169.77,169.72,31.8919614]
[1747554260405,12.29235886,169.77,169.72,31.8919614]
[1747554260734,12.29235886,169.77,169.72,31.89205284]
[1747554261427,6.40201316,169.77,169.72,31.89205284]
[1747554262834,6.40201316,169.76,169.72,31.89205284]
[1747554263352,6.40201316,169.77,169.72,31.89205284]
[1747554263705,6.40201316,169.78,169.72,31.89205284]
[1747554264947,12.2920097,169.78,169.72,31.89205284]
[1747554265122,6.40201316,169.77,169.72,31.89205284]
[1747554266334,6.40201316,169.76,169.72,31.89205284]
[1747554277643,5.88962836,169.79,169.72,31.89205284]
[1747554277832,6.40201316,169.76,169.72,31.89205284]
[1747554282435,12.29280181,169.76,169.72,26.0]
[1747554284051,6.40201316,169.76,169.72,26.0]
[1747554284622,6.40201316,169.76,169.73,3.36928987]
[1747554286158,6.40201316,169.76,169.72,26.0]
[1747554288375,12.29276959,169.76,169.72,26.0]
[1747554291802,5.88962836,169.79,169.72,26.0]
[1747554291995,6.40201316,169.77,169.72,26.0]
[1747554292383,6.40201316,169.77,169.73,3.37203619]
[1747554293386,5.88962836,169.79,169.73,3.37203619]
[1747554293576,6.40201316,169.77,169.73,3.37203619]
[1747554293897,12.29241475,169.77,169.72,26.0]
[1747554296296,12.29241475,169.77,169.73,3.37282705]
[1747554298212,12.29241475,169.77,169.74,3.37282705]
[1747554298414,6.40201316,169.76,169.74,3.37282705]
[1747554299231,6.40201316,169.76,169.72,26.0]
[1747554300022,6.40201316,169.75,169.72,26.0]
[1747554300529,6.40201316,169.73,169.7,4.22146908]
[1747554300712,6.40201316,169.72,169.7,4.22146908]
[1747554301096,6.40201316,169.71,169.68,18.26]
[1747554302529,6.40201316,169.71,169.69,3.37229895]
[1747554304334,6.40201316,169.7,169.69,3.37229895]
[1747554304626,6.40201316,169.7,169.66,10.11559509]
[1747554304833,6.40201316,169.71,169.66,10.11559509]
[1747554305008,6.40201316,169.72,169.66,10.11559509]
[1747554305209,12.29308146,169.75,169.69,26.0]
[1747554305605,6.40201316,169.74,169.69,26.0]
[1747554305830,5.8910683,169.75,169.69,26.0]
[1747554305831,6.40201316,169.73,169.69,26.0]
[1747554306333,6.40201316,169.73,169.68,31.8931926]
[1747554306901,6.40201316,169.72,169.68,31.8931926]
[1747554308007,6.40201316,169.73,169.68,31.8931926]
[1747554309936,12.29345383,169.74,169.68,31.8931926]
[1747554310339,6.40201316,169.73,169.68,31.8931926]
[1747554310838,6.40201316,169.72,169.68,26.0]
[1747554311012,6.40201316,169.72,169.69,3.36905553]
[1747554311206,6.40201316,169.7,169.69,3.36905553]
[1747554312456,12.29491363,169.7,169.65,30.22146908]
[1747554312658,6.40201316,169.69,169.65,30.22146908]
[1747554312831,5.89290047,169.7,169.65,30.22146908]
[1747554312832,12.29491363,169.7,169.65,30.22146908]
[1747554313150,12.29491363,169.7,169.65,4.22146908]
[1747554313351,12.29491363,169.7,169.65,10.11589191]
[1747554314044,6.40201316,169.7,169.65,10.11589191]
[1747554314252,6.40201316,169.7,169.65,5.89442283]
[1747554314756,12.29449621,169.71,169.65,5.89442283]
[1747554314965,6.40201316,169.71,169.65,5.89442283]
[1747554315367,6.40201316,169.71,169.66,3.36734233]
[1747554317164,6.40201316,169.71,169.65,5.89442283]
[1747554318747,12.2944583,169.71,169.65,5.89442283]
[1747554319262,6.40201316,169.71,169.65,5.89442283]
[1747554320365,12.29443351,169.71,169.65,5.89442283]
[1747554321266,6.40201316,169.71,169.65,5.89442283]
[1747554322064,6.40201316,169.73,169.66,26.0]
[1747554322255,5.8903222,169.77,169.66,26.0]
[1747554322458,6.40201316,169.76,169.66,26.0]
[1747554322856,6.40201316,169.75,169.66,26.0]
[1747554323635,6.40201316,169.73,169.66,31.89402889]
[1747554323851,6.40201316,169.71,169.66,31.89402889]
[1747554325338,12.29459486,169.71,169.66,26.0]
[1747554326571,12.29459486,169.71,169.66,31.89406988]
[1747554328659,12.29459486,169.71,169.66,26.0]
[1747554328981,12.29459486,169.71,169.65,5.89448718]
[1747554329276,6.40201316,169.7,169.64,33.53405714]
[1747554329476,6.40201316,169.7,169.64,31.89475714]
[1747554329870,6.40201316,169.68,169.64,26.0]
[1747554330069,6.40201316,169.69,169.65,3.36658517]
[1747554331087,12.29504926,169.7,169.65,9.2609713]
[1747554331661,12.29504926,169.7,169.65,5.89438613]
[1747554331959,12.29504926,169.7,169.64,31.8947612]
[1747554332161,6.40201316,169.69,169.64,31.8947612]
[1747554332384,6.40201316,169.69,169.64,26.0]
[1747554334185,12.29520667,169.69,169.64,26.0]
[1747554337084,20.62220126,169.72,169.64,26.0]
[1747554337379,6.40201316,169.69,169.64,26.0]
[1747554338387,6.40201316,169.68,169.64,26.0]
[1747554339073,12.29536668,169.69,169.64,26.0]
[1747554339689,5.89335352,169.69,169.64,31.89483247]
[1747554339867,12.29536668,169.69,169.64,31.89483247]
[1747554342489,12.29536668,169.69,169.64,26.0]
[1747554348285,12.29536668,169.69,169.64,31.89482082]
[1747554349592,12.29536668,169.69,169.64,26.0]
[1747554350781,5.89335352,169.69,169.64,26.0]
[1747554353300,5.89335352,169.69,169.64,31.89481377]
[1747554353516,18.28,169.72,169.64,31.89481377]
[1747554353682,12.29407066,169.72,169.64,31.89481377]
[1747554354992,12.29372352,169.73,169.65,4.93451373]
[1747554356182,12.29372352,169.73,169.67,5.89379383]
[1747554356382,5.89171036,169.73,169.67,5.89379383]
[1747554356587,12.29372352,169.73,169.67,5.89379383]
[1747554356813,6.40201316,169.72,169.66,9.2613886]
[1747554356985,6.40201316,169.71,169.66,3.36731373]
[1747554357186,5.89171036,169.73,169.66,3.36731373]
[1747554357399,6.40201316,169.71,169.66,3.36731373]
[1747554357602,6.40201316,169.71,169.65,1.5672]
[1747554358517,5.89275191,169.7,169.65,1.5672]
[1747554358719,5.89275191,169.7,169.65,7.46160608]
[1747554359222,12.29476507,169.7,169.65,7.46160608]
[1747554360326,12.29476507,169.7,169.65,27.5672]
[1747554362125,12.29476507,169.7,169.63,31.89508214]
[1747554362497,12.29476507,169.7,169.64,3.37062034]
[1747554363837,12.29476507,169.7,169.65,3.37062034]
[1747554364012,5.8920575,169.72,169.65,3.37062034]
[1747554364201,6.40201316,169.71,169.65,3.37062034]
[1747554365305,12.29444198,169.71,169.66,3.37062034]
[1747554366426,12.29444198,169.71,169.64,5.89483612]
[1747554366931,6.40201316,169.7,169.64,5.89483612]
[1747554368820,12.29444198,169.71,169.64,5.89483612]
[1747554369022,12.29444198,169.71,169.65,3.37146737]
[1747554369431,12.29444198,169.71,169.65,9.26581154]
[1747554370105,12.29444198,169.71,169.65,3.37146737]
[1747554370321,12.29444198,169.71,169.64,5.89474712]
[1747554370523,6.40201316,169.7,169.64,5.89474712]
[1747554372118,12.29479968,169.7,169.64,5.89474712]
[1747554373240,6.40201316,169.71,169.64,5.89474712]
[1747554374148,6.40201316,169.71,169.65,3.37269027]
[1747554375149,12.29466229,169.71,169.65,9.2670816]
[1747554375738,12.29466229,169.71,169.66,3.37269027]
[1747554377046,12.29466229,169.71,169.64,5.89483612]
[1747554378841,12.29466229,169.71,169.65,9.26568787]
[1747554379746,12.29466229,169.71,169.66,3.37138131]
[1747554379954,12.29413382,169.72,169.66,9.26543283]
[1747554380940,12.29413382,169.72,169.67,3.37138131]
[1747554382260,6.40201316,169.71,169.65,5.89440604]
[1747554383257,12.29451526,169.71,169.65,5.89440604]